bitfinex/quotes_SOLUSD_20250403
["timestamp","ask_amount","ask_price","bid_price","bid_amount"]
[1743677937301,47.74003542,115.96,115.91,32.55853542]
[1743677937507,135.7,115.95,115.9,0.03]
[1743677937706,156.01319476,115.95,115.9,20.34319476]
[1743677938016,135.7,115.95,115.92,20.31319476]
[1743677938918,135.7,115.95,115.93,20.31319476]
[1743677939220,144.3248,115.95,115.93,20.31319476]
[1743677939621,144.3248,115.95,115.92,20.31319476]
[1743677940322,144.3248,115.95,115.91,20.31319476]
[1743677940623,135.7,115.95,115.92,20.31319476]
[1743677941122,135.7,115.95,115.93,20.31319476]
[1743677941640,135.7,115.95,115.92,20.31319476]
[1743677941829,144.3245,115.95,115.9,0.03]
[1743677942023,164.63769476,115.95,115.91,20.31319476]
[1743677942407,144.3245,115.95,115.91,20.31319476]
[1743677942630,156.01319476,115.94,115.9,0.03]
[1743677942827,20.31319476,115.92,115.9,0.03]
[1743677943012,156.01319476,115.92,115.9,0.03]
[1743677943438,20.31319476,115.91,115.9,0.03]
[1743677943731,26.51499476,115.91,115.9,0.03]
[1743677943930,35.14229476,115.91,115.9,0.03]
[1743677944132,8.6273,115.91,115.9,0.03]
[1743677944623,28.94049476,115.91,115.9,0.03]
[1743677945115,8.6273,115.91,115.9,0.03]
[1743677945526,135.7,115.92,115.9,0.03]
[1743677945728,8.6258,115.93,115.9,20.34319476]
[1743677946029,50.50369476,115.93,115.9,0.03]
[1743677946224,186.20369476,115.93,115.9,0.03]
[1743677946428,20.31319476,115.91,115.9,0.03]
[1743677947208,32.0811,115.9,115.84,0.03]
[1743677947411,20.31319476,115.88,115.84,0.03]
[1743677947621,26.43839476,115.88,115.84,0.03]
[1743677947822,6.1252,115.88,115.85,20.31319476]
[1743677948010,135.7,115.89,115.85,20.31319476]
[1743677948216,156.01319476,115.89,115.84,20.34319476]
[1743677948807,135.7,115.89,115.84,20.34319476]
[1743677949010,156.01319476,115.89,115.85,20.31319476]
[1743677949336,135.7,115.89,115.86,20.31319476]
[1743677949511,144.3292,115.89,115.86,20.31319476]
[1743677949711,144.3292,115.89,115.85,20.31319476]
[1743677949932,144.3292,115.89,115.86,20.31319476]
[1743677951450,164.64239476,115.89,115.84,0.03]
[1743677951612,20.31319476,115.88,115.84,0.03]
[1743677952122,20.31319476,115.88,115.84,20.34319476]
[1743677952325,50.51449476,115.89,115.84,20.34319476]
[1743677952919,30.2013,115.89,115.85,20.31319476]
[1743677953930,8.6292,115.89,115.86,20.31319476]
[1743677957255,8.6292,115.89,115.85,20.31319476]
[1743677957432,135.7,115.88,115.84,0.03]
[1743677957749,135.7,115.88,115.84,20.34319476]
[1743677957938,135.7,115.88,115.86,0.03]
[1743677959861,8.6303,115.87,115.86,0.03]
[1743677962166,28.94349476,115.87,115.86,0.03]
[1743677963062,8.6299,115.88,115.86,0.03]
[1743677963437,20.31319476,115.87,115.86,0.03]
[1743677964264,28.94349476,115.87,115.86,0.03]
[1743677965665,8.6303,115.87,115.86,0.03]
[1743677966038,144.3299,115.88,115.86,0.03]
[1743677967063,8.6299,115.88,115.86,0.03]
[1743677968148,28.94309476,115.88,115.86,0.03]
[1743677968848,8.6299,115.88,115.86,0.03]
[1743677971961,8.6915,115.9,115.87,20.31319476]
[1743677972166,0.063,115.9,115.89,20.31319476]
[1743677972478,0.063,115.9,115.88,20.31319476]
[1743677973064,8.6911,115.9,115.87,20.31319476]
[1743677973452,8.6911,115.9,115.86,20.34319476]
[1743677974174,8.6911,115.9,115.87,20.31319476]
[1743677976067,0.063,115.9,115.88,20.31319476]
[1743677977148,0.063,115.9,115.87,20.31319476]
[1743677983664,0.063,115.9,115.87,13.00873537]
[1743677985080,0.063,115.9,115.88,13.00873537]
[1743677987782,0.063,115.9,115.87,8.6301]
[1743677987983,0.063,115.9,115.89,13.00873537]
[1743677989159,0.063,115.9,115.89,21.63753537]
[1743677990583,0.063,115.9,115.89,13.00873537]
[1743677992683,0.063,115.9,115.89,21.63753537]
[1743677993068,0.063,115.9,115.89,40.57150737]
[1743677994782,0.063,115.9,115.89,40.71366894]
[1743677995366,0.063,115.9,115.89,40.57150737]
[1743677996483,0.063,115.9,115.89,48.45150737]
[1743677996679,0.063,115.9,115.89,48.59366894]
[1743677997189,0.063,115.95,115.9,18.933972]
[1743677997485,0.063,115.95,115.93,13.00873537]
[1743677998987,0.063,115.95,115.92,13.00873537]
[1743678000291,0.063,115.95,115.91,13.00873537]
[1743678000791,13.07173537,115.95,115.88,8.6592]
[1743678000995,13.00873537,115.89,115.88,0.03]
[1743678001372,20.94873537,115.89,115.88,0.03]
[1743678001893,20.96873537,115.89,115.88,0.03]
[1743678002092,29.59753537,115.89,115.88,0.03]
[1743678002405,0.14216157,115.88,115.86,0.03]
[1743678002693,118.12851042,115.87,115.84,0.03]
[1743678002870,13.15089694,115.85,115.84,0.03]
[1743678003196,21.11089694,115.85,115.84,0.03]
[1743678003684,20.49603653,115.85,115.84,0.03]
[1743678003879,28.45603653,115.85,115.84,0.03]
[1743678004197,37.08783653,115.85,115.84,0.03]
[1743678004566,36.94567496,115.85,115.84,0.03]
[1743678005770,28.31387496,115.85,115.84,0.03]
[1743678006402,20.35387496,115.85,115.84,0.03]
[1743678006569,28.29387496,115.85,115.84,0.03]
[1743678007093,20.35387496,115.85,115.84,0.03]
[1743678007400,28.29387496,115.85,115.84,0.03]
[1743678007796,47.37000853,115.85,115.84,0.03]
[1743678008100,154.633972,115.84,115.83,0.03]
[1743678008304,39.28784696,115.84,115.83,0.03]
[1743678009293,39.43000853,115.84,115.83,0.03]
[1743678010270,0.14216157,115.8,115.76,0.03]
[1743678010477,20.35387496,115.77,115.76,0.03]
[1743678010800,20.49603653,115.77,115.76,0.03]
[1743678011171,39.43000853,115.77,115.76,0.03]
[1743678011409,45.98140853,115.77,115.76,0.03]
[1743678011878,27.04743653,115.77,115.76,0.03]
[1743678012081,45.98140853,115.77,115.76,0.03]
[1743678012477,27.04743653,115.77,115.76,0.03]
[1743678012682,35.00743653,115.77,115.76,0.03]
[1743678014106,20.35387496,115.8,115.76,0.03]
[1743678014307,343.1,115.85,115.76,20.38387496]
[1743678014308,6.1711,115.84,115.76,20.38387496]
[1743678014522,20.35387496,115.81,115.76,20.38387496]
[1743678014683,8.0137,115.84,115.79,20.35387496]
[1743678014684,20.35387496,115.84,115.79,20.35387496]
[1743678015015,20.35387496,115.8,115.76,0.03]
[1743678015179,20.35387496,115.78,115.76,0.03]
[1743678015584,156.05387496,115.79,115.76,0.03]
[1743678015799,20.35387496,115.82,115.78,20.35387496]
[1743678015985,135.7,115.84,115.78,20.35387496]
[1743678016190,20.35387496,115.82,115.78,20.35387496]
[1743678016409,156.05387496,115.83,115.78,20.35387496]
[1743678016791,20.35387496,115.82,115.77,20.35387496]
[1743678017014,135.7,115.83,115.77,20.35387496]
[1743678017015,20.35387496,115.81,115.77,20.35387496]
[1743678017319,20.35387496,115.81,115.76,20.38387496]
[1743678017514,20.35387496,115.8,115.76,0.03]
[1743678017899,135.7,115.82,115.76,20.38387496]
[1743678018111,135.7,115.82,115.77,20.35387496]
[1743678018112,156.05387496,115.82,115.77,20.35387496]
[1743678018404,156.05387496,115.82,115.76,0.03]
[1743678018596,156.05387496,115.82,115.77,20.35387496]
[1743678018917,135.7,115.86,115.81,20.35387496]
[1743678019092,20.41687496,115.89,115.84,20.35387496]
[1743678019422,20.35387496,115.88,115.83,20.35387496]
[1743678019715,156.05387496,115.88,115.83,20.35387496]
[1743678020610,156.05387496,115.88,115.82,8.04]
[1743678020611,20.41687496,115.89,115.84,20.35387496]
[1743678020811,0.063,115.89,115.84,20.35387496]
[1743678021129,20.35387496,115.87,115.82,28.39387496]
[1743678021313,20.35387496,115.88,115.83,20.35387496]
[1743678021625,20.35387496,115.86,115.79,8.02]
[1743678021789,32.55211854,115.86,115.81,32.55211854]
[1743678021990,32.55211854,115.85,115.8,32.55211854]
[1743678022793,135.7,115.86,115.82,32.55211854]
[1743678022998,8.04,115.88,115.83,32.55211854]
[1743678022999,135.7,115.87,115.83,32.55211854]
[1743678023214,168.25211854,115.87,115.82,32.55211854]
[1743678023412,135.7,115.87,115.82,32.55211854]
[1743678023815,32.55211854,115.86,115.81,32.55211854]
[1743678024125,32.55211854,115.84,115.79,32.55211854]
[1743678024318,135.7,115.86,115.82,32.55211854]
[1743678024515,168.25211854,115.87,115.82,32.55211854]
[1743678024714,168.25211854,115.87,115.83,32.55211854]
[1743678025100,32.55211854,115.86,115.78,0.03]
[1743678025415,32.55211854,115.84,115.79,32.55211854]
[1743678025819,32.55211854,115.83,115.78,32.58211854]
[1743678026123,168.25211854,115.82,115.78,0.03]
[1743678026300,32.55211854,115.82,115.78,0.03]
[1743678026495,32.55211854,115.81,115.78,0.03]
[1743678026898,32.55211854,115.82,115.78,0.03]
[1743678027097,32.55211854,115.81,115.78,0.03]
[1743678027722,135.7,115.83,115.78,0.03]
[1743678027922,32.55211854,115.81,115.78,0.03]
[1743678028121,32.55211854,115.79,115.78,0.03]
[1743678028326,135.7,115.79,115.78,0.03]
[1743678028494,168.25211854,115.79,115.78,0.03]
[1743678028695,135.7,115.79,115.78,0.03]
[1743678029900,32.55211854,115.79,115.78,0.03]
[1743678030299,40.59211854,115.8,115.78,0.03]
[1743678030499,8.04,115.8,115.78,0.03]
[1743678030721,40.59211854,115.8,115.78,0.03]
[1743678031321,8.04,115.8,115.78,0.03]
[1743678031500,40.59211854,115.8,115.78,0.03]
[1743678032241,32.55211854,115.79,115.78,0.03]
[1743678032607,32.69428011,115.79,115.78,0.03]
[1743678032897,51.62825211,115.79,115.78,0.03]
[1743678034017,32.69428011,115.79,115.78,0.03]
[1743678035122,32.55211854,115.79,115.78,0.03]
[1743678038224,8.02,115.8,115.78,0.03]
[1743678038420,40.57211854,115.8,115.78,0.03]
[1743678038736,32.55211854,115.79,115.78,0.03]
[1743678038900,8.02,115.8,115.78,0.03]
[1743678039102,0.063,115.83,115.78,0.03]
[1743678039331,0.063,115.83,115.79,32.55211854]
[1743678040315,0.063,115.83,115.82,32.55211854]
[1743678040903,0.063,115.89,115.83,0.42648471]
[1743678041103,0.063,115.89,115.88,32.55211854]
[1743678041427,0.063,115.89,115.87,32.55211854]
[1743678041814,0.063,115.89,115.83,0.42648471]
[1743678042035,0.063,115.89,115.87,32.55211854]
[1743678043437,0.063,115.89,115.88,32.55211854]
[1743678043805,0.063,115.89,115.88,51.2017674]
[1743678044132,0.063,115.89,115.88,59.64825211]
[1743678044643,0.063,115.89,115.88,59.50609054]
[1743678045426,0.063,115.89,115.88,59.64825211]
[1743678045945,135.763,115.95,115.9,0.28432314]
[1743678046107,0.063,115.95,115.93,32.55211854]
[1743678046310,0.063,115.95,115.94,32.83644168]
[1743678046622,0.063,115.95,115.94,32.55211854]
[1743678047245,0.063,115.95,115.94,51.48609054]
[1743678047545,0.063,115.95,115.94,51.62825211]
[1743678047839,0.063,115.96,115.95,18.64964886]
[1743678048013,0.063,115.96,115.95,51.2017674]
[1743678048428,0.063,115.96,115.95,0.28432314]
[1743678048745,0.063,115.96,115.95,32.55211854]
[1743678048908,0.063,115.96,115.95,53.49665211]
[1743678049107,0.063,116.01,115.96,0.42648471]
[1743678049403,0.063,116.01,116.0,32.55211854]
[1743678050220,0.063,116.01,116.0,32.83644168]
[1743678051506,0.063,116.01,115.98,0.28432314]
[1743678051720,0.063,116.01,115.97,32.55211854]
[1743678051922,0.063,116.01,115.96,0.14216157]
[1743678052129,0.063,116.01,115.97,32.55211854]
[1743678052338,168.31511854,116.01,115.96,32.55211854]
[1743678052507,168.31511854,116.01,115.9,0.5]
[1743678052508,32.55211854,115.97,115.91,1.9741]
[1743678052714,135.7,115.96,115.92,32.55211854]
[1743678053023,168.25211854,115.96,115.91,32.55211854]
[1743678053230,168.25211854,115.96,115.92,32.55211854]
[1743678053538,32.55211854,115.95,115.91,32.55211854]
[1743678053739,32.55211854,115.95,115.9,32.55211854]
[1743678053943,32.55211854,115.95,115.89,18.64964886]
[1743678054268,8.04,115.96,115.88,32.55211854]
[1743678054269,32.55211854,115.93,115.88,32.55211854]
[1743678054406,168.25211854,115.93,115.88,32.55211854]
[1743678055236,135.7,115.93,115.91,32.55211854]
[1743678055432,168.25211854,115.95,115.94,0.03]
[1743678055643,135.7,115.99,115.94,32.86644168]
[1743678055818,135.763,116.01,115.97,32.55211854]
[1743678056209,0.063,116.01,115.98,32.55211854]
[1743678056411,0.063,116.01,116.0,32.55211854]
[1743678058763,0.063,116.01,115.98,40.67211854]
[1743678059634,0.063,116.01,115.97,40.67211854]
[1743678060355,0.063,116.01,115.97,8.12]
[1743678060543,0.063,116.01,115.99,32.55211854]
[1743678060860,8.6829,116.01,115.98,32.55211854]
[1743678061554,41.23501854,116.01,115.97,8.12]
[1743678061748,41.23501854,116.01,115.96,32.55211854]
[1743678061957,8.6829,116.01,115.98,32.55211854]
[1743678062256,0.063,116.01,116.0,32.55211854]
[1743678062638,0.063,116.01,115.99,32.55211854]
[1743678062841,0.063,116.01,116.0,32.55211854]
[1743678063429,0.063,116.01,115.98,32.55211854]
[1743678063630,135.763,116.01,115.97,32.55211854]
[1743678063827,168.31511854,116.01,115.97,32.55211854]
[1743678064442,135.763,116.01,115.99,32.55211854]
[1743678064962,176.93521854,116.01,115.95,8.12]
[1743678065152,32.55211854,116.0,115.95,32.55211854]
[1743678065461,168.25211854,115.99,115.95,32.55211854]
[1743678065661,135.7,115.99,115.96,32.55211854]
[1743678066334,168.25211854,115.99,115.94,0.03]
[1743678066534,176.37211854,116.0,115.95,32.55211854]
[1743678066765,135.7,116.0,115.96,32.55211854]
[1743678067056,8.6214,115.99,115.96,32.55211854]
[1743678067228,8.6214,115.99,115.96,32.58211854]
[1743678067427,8.6214,115.99,115.96,0.03]
[1743678068859,144.3207,116.0,115.96,32.58211854]
[1743678069252,144.3207,116.0,115.97,32.55211854]
[1743678069455,8.6207,116.0,115.97,32.55211854]
[1743678069960,8.6833,116.01,115.98,32.55211854]
[1743678070135,0.063,116.01,115.98,32.55211854]
[1743678070330,0.063,116.01,116.0,32.55211854]
[1743678071535,0.063,116.01,116.0,51.48609054]
[1743678071937,0.063,116.01,116.0,60.00669054]
[1743678072245,0.063,116.02,116.01,19.07613357]
[1743678072445,0.063,116.02,116.01,51.62825211]
[1743678073372,0.063,116.02,116.01,60.24815211]
[1743678073675,0.063,116.03,116.02,67.54932961]
[1743678074543,0.063,116.03,116.0,21.5506]
[1743678074544,0.063,116.03,116.0,8.6203]
[1743678074733,0.063,116.03,116.02,67.26500647]
[1743678074937,0.063,116.03,116.02,67.54932961]
[1743678075166,0.063,116.03,116.02,48.61535761]
[1743678075353,0.063,116.03,116.01,48.61535761]
[1743678075865,0.063,116.03,116.01,57.23515761]
[1743678076063,0.063,116.03,116.02,48.61535761]
[1743678076243,0.063,116.03,116.0,27.554272]
[1743678076446,0.063,116.03,116.01,48.61535761]
[1743678076645,0.063,116.03,116.02,48.61535761]
[1743678076844,0.063,116.03,116.02,67.54932961]
[1743678077274,0.063,116.03,116.0,8.90462314]
[1743678077444,0.063,116.03,116.01,48.61535761]
[1743678077648,0.063,116.03,116.02,48.61535761]
[1743678078170,0.063,116.03,115.97,322.72]
[1743678078478,0.063,116.03,116.02,48.61535761]
[1743678078641,0.063,116.03,116.02,67.54932961]
[1743678079237,0.063,116.03,116.02,67.69149118]
[1743678079442,0.063,116.03,116.02,76.31069118]
[1743678081056,0.063,116.03,116.02,67.69149118]
[1743678081263,0.063,116.03,116.02,67.54932961]
[1743678081465,0.063,116.03,116.02,76.16852961]
[1743678081859,0.063,116.03,116.02,76.31069118]
[1743678082064,0.063,116.07,116.03,25.28603357]
[1743678082265,0.063,116.07,116.05,48.61535761]
[1743678083352,0.063,116.07,116.04,56.73535761]
[1743678083552,0.063,116.07,116.04,48.61535761]
[1743678083763,0.063,116.07,116.03,67.54932961]
[1743678084140,0.063,116.07,116.04,48.61535761]
[1743678084348,0.063,116.07,116.06,48.61535761]
[1743678084766,0.063,116.07,116.06,67.69149118]
[1743678084965,0.063,116.07,116.06,67.54932961]
[1743678085341,0.063,116.07,116.04,0.28432314]
[1743678085549,0.063,116.07,116.04,48.75751918]
[1743678086174,0.063,116.07,116.05,48.61535761]
[1743678086575,0.063,116.07,116.04,48.89968075]
[1743678086765,0.063,116.07,116.05,48.61535761]
[1743678086968,0.063,116.07,116.06,67.26500647]
[1743678087170,0.063,116.07,116.06,76.16552961]
[1743678087673,0.063,116.07,116.06,76.30769118]
[1743678087981,0.063,116.07,116.06,84.40769118]
[1743678088762,0.063,116.08,116.07,0.14216157]
[1743678088981,0.063,116.08,116.07,48.75751918]
[1743678089174,0.063,116.08,116.07,76.30689118]
[1743678092378,0.0001,116.08,116.07,124.92224879]
[1743678092684,0.0001,116.08,116.07,76.30689118]
[1743678093779,0.0001,116.08,116.07,60.07781712]
[1743678094781,0.0001,116.08,116.04,32.38628355]
[1743678094782,0.0001,116.08,116.04,8.6177]
[1743678095182,0.0001,116.08,116.05,32.38628355]
[1743678095574,41.00108355,116.08,116.02,0.063]
[1743678095774,32.38628355,116.07,116.03,32.38628355]
[1743678097297,6.4562,116.03,116.02,0.063]
[1743678097471,55.56088355,116.03,116.02,0.063]
[1743678097672,71.86917419,116.03,116.02,0.063]
[1743678097876,63.76917419,116.03,116.02,0.063]
[1743678098784,85.31527419,116.03,115.96,18.67964886]
[1743678098986,48.69457419,116.0,115.96,18.67964886]
[1743678099777,8.6214,115.99,115.96,18.67964886]
[1743678100290,48.69457419,115.97,115.96,0.03]
[1743678100882,54.99357419,115.97,115.94,0.03]
[1743678101193,48.69457419,115.95,115.94,0.03]
[1743678101977,57.31897419,115.95,115.94,0.03]
[1743678103900,57.31897419,115.95,115.94,0.0001]
[1743678104100,135.7,115.94,115.9,0.063]
[1743678104405,48.69457419,115.91,115.9,0.063]
[1743678105803,201.38883576,115.91,115.9,0.0001]
[1743678106098,222.95723576,115.91,115.84,0.03]
[1743678106302,48.69457419,115.89,115.84,48.72457419]
[1743678106885,184.39457419,115.9,115.85,48.69457419]
[1743678107287,48.69457419,115.89,115.84,57.35647419]
[1743678107494,144.3288,115.9,115.85,0.28432314]
[1743678107805,144.3288,115.9,115.86,48.69457419]
[1743678108381,6.3671,115.91,115.87,48.97889733]
[1743678108584,8.6258,115.93,115.89,48.69457419]
[1743678108802,190.68027419,115.94,115.89,48.69457419]
[1743678108803,199.30547419,115.94,115.89,48.69457419]
[1743678109007,141.9857,115.94,115.9,48.69457419]
[1743678109311,8.08,115.95,115.91,48.69457419]
[1743678109482,193.01867419,115.96,115.91,48.69457419]
[1743678109678,144.3241,115.96,115.92,48.69457419]
[1743678109905,135.7,115.98,115.94,48.69457419]
[1743678110081,48.69457419,115.98,115.92,0.28432314]
[1743678110282,48.69457419,115.96,115.91,56.77457419]
[1743678110585,167.7085,115.99,115.92,48.69457419]
[1743678110586,48.69457419,115.97,115.92,48.69457419]
[1743678110784,184.39457419,115.98,115.93,48.69457419]
[1743678111411,135.7,115.98,115.94,48.69457419]
[1743678111708,59.14957419,115.99,115.95,48.69457419]
[1743678111709,146.155,115.99,115.95,48.69457419]
[1743678112017,193.01527419,116.0,115.95,57.31887419]
[1743678112515,193.01407419,116.02,115.97,48.69457419]
[1743678112717,48.69457419,116.01,115.96,48.69457419]
[1743678113205,48.69457419,115.99,115.93,18.933972]
[1743678113410,48.69457419,116.0,115.95,48.69457419]
[1743678113590,48.69457419,116.0,115.96,48.69457419]
[1743678113903,144.3205,116.01,115.97,48.69457419]
[1743678114291,193.01507419,116.01,115.96,48.97889733]
[1743678114484,48.69457419,116.0,115.95,48.69457419]
[1743678115088,144.3205,116.01,115.95,48.69457419]
[1743678115298,193.01507419,116.01,115.96,48.69457419]
[1743678115684,135.7,116.01,115.97,48.69457419]
[1743678115890,144.3187,116.03,115.99,48.69457419]
[1743678117109,193.01327419,116.03,115.98,48.69457419]
[1743678117686,48.69457419,116.01,115.96,48.69457419]
[1743678117894,30.1723,116.0,115.93,48.69457419]
[1743678118221,48.69457419,115.97,115.92,48.69457419]
[1743678118408,48.69457419,115.98,115.93,48.69457419]
[1743678118607,48.69457419,115.98,115.92,18.933972]
[1743678118608,48.69457419,115.97,115.92,48.69457419]
[1743678118794,48.69457419,115.96,115.9,339.528]
[1743678119114,48.69457419,115.96,115.91,48.69457419]
[1743678119312,141.9888,115.98,115.92,48.69457419]
[1743678119484,190.68337419,115.98,115.93,48.69457419]
[1743678119911,8.6229,115.97,115.92,48.69457419]
[1743678120085,57.31747419,115.97,115.92,48.69457419]
[1743678120518,48.69457419,115.94,115.86,0.14216157]
[1743678120685,48.69457419,115.94,115.89,48.69457419]
[1743678120887,48.69457419,115.94,115.9,18.933972]
[1743678121088,48.69457419,115.95,115.9,67.62854619]
[1743678121512,184.39457419,115.96,115.91,48.69457419]
[1743678121715,16.6829,115.97,115.93,48.69457419]
[1743678122087,65.37747419,115.97,115.92,48.69457419]
[1743678122293,48.69457419,115.95,115.89,0.28432314]
[1743678122624,48.69457419,115.92,115.86,8.77296157]
[1743678122822,48.69457419,115.92,115.87,48.69457419]
[1743678123189,194.38817419,115.93,115.88,48.69457419]
[1743678123395,48.69457419,115.92,115.86,18.933972]
[1743678123793,48.69457419,115.92,115.87,48.69457419]
[1743678124218,8.6273,115.91,115.87,48.69457419]
[1743678124703,193.02187419,115.91,115.86,48.69457419]
[1743678125121,193.02187419,115.91,115.84,0.03]
[1743678125122,48.69457419,115.9,115.84,0.03]
[1743678125312,48.69457419,115.9,115.84,18.67964886]
[1743678125621,48.69457419,115.9,115.85,48.69457419]
[1743678125930,150.3608,115.91,115.86,0.14216157]
[1743678126121,150.3608,115.91,115.9,0.03]
[1743678126422,8.6269,115.92,115.9,0.03]
[1743678126993,184.39457419,115.94,115.9,0.03]
[1743678127198,15.2378,115.95,115.91,48.69457419]
[1743678127430,31.6038,115.97,115.94,48.69457419]
[1743678127431,0.063,115.97,115.94,48.69457419]
[1743678127637,0.063,115.97,115.92,67.34422305]
[1743678127638,0.063,115.97,115.95,48.69457419]
[1743678127812,0.063,115.97,115.96,48.69457419]
[1743678128296,0.063,115.97,115.95,57.31887419]
[1743678128621,0.063,115.97,115.94,48.69457419]
[1743678128816,0.063,115.97,115.93,0.28432314]
[1743678128817,0.063,115.97,115.93,48.69457419]
[1743678129208,0.063,115.97,115.96,48.69457419]
[1743678129923,0.063,115.97,115.96,67.62854619]
[1743678130306,0.063,115.97,115.96,48.69457419]
[1743678130615,0.063,115.97,115.95,18.933972]
[1743678130802,0.063,115.97,115.96,48.69457419]
[1743678131112,0.063,115.97,115.96,67.62854619]
[1743678131311,0.063,115.97,115.96,67.77070776]
[1743678131619,0.063,115.97,115.96,48.69457419]
[1743678131831,0.063,115.97,115.94,48.69457419]
[1743678132208,0.063,115.97,115.93,67.62854619]
[1743678132407,57.38047419,115.97,115.93,18.933972]
[1743678132628,78.93767419,115.97,115.93,18.933972]
[1743678133433,48.69457419,115.94,115.9,0.03]
[1743678133921,184.39457419,115.95,115.9,48.72457419]
[1743678134425,8.6258,115.93,115.9,0.03]
[1743678134745,135.7,115.95,115.92,48.69457419]
[1743678135055,8.625,115.95,115.91,48.69457419]
[1743678136049,48.69457419,115.94,115.9,0.03]
[1743678137123,36.316,115.95,115.9,57.35257419]
[1743678137124,63.44957419,115.95,115.9,57.35257419]
[1743678137351,14.755,115.95,115.91,48.69457419]
[1743678138027,8.625,115.95,115.92,48.69457419]
[1743678138228,8.625,115.95,115.91,48.97889733]
[1743678139332,57.31957419,115.95,115.91,18.933972]
[1743678139525,57.31957419,115.95,115.91,48.97889733]
[1743678139526,8.625,115.95,115.91,48.97889733]
[1743678139726,8.624,115.96,115.92,32.49836735]
[1743678140322,41.12236735,115.96,115.91,51.43233935]
[1743678140540,8.624,115.96,115.91,51.43233935]
[1743678140738,41.12236735,115.96,115.91,51.43233935]
[1743678141253,32.49836735,115.95,115.9,32.52836735]
[1743678141461,32.49836735,115.92,115.9,0.03]
[1743678141749,39.13486735,115.91,115.9,0.03]
[1743678142332,47.76216735,115.91,115.9,0.03]
[1743678142649,47.90432892,115.91,115.9,0.0001]
[1743678142953,26.96679916,115.91,115.9,0.0001]
[1743678143746,26.82463759,115.91,115.9,0.0001]
[1743678144335,6.6365,115.91,115.9,0.0001]
[1743678144657,41.12526735,115.92,115.9,0.0001]
[1743678144658,41.12536735,115.92,115.9,0.0001]
[1743678145154,6.5157,115.94,115.9,32.49846735]
[1743678145359,15.141,115.94,115.9,32.49846735]
[1743678145852,15.141,115.94,115.9,48.75091946]
[1743678146059,63.89181946,115.94,115.9,48.75091946]
[1743678146254,63.89181946,115.94,115.9,0.0001]
[1743678146569,57.37741946,115.92,115.9,0.0001]
[1743678146935,6.5157,115.94,115.9,0.0001]
[1743678147237,55.26651946,115.94,115.9,48.75091946]
[1743678147439,48.75081946,115.93,115.9,0.0001]
[1743678148671,8.6258,115.93,115.9,0.0001]
[1743678149246,57.37661946,115.93,115.9,0.0001]
[1743678149446,48.75081946,115.91,115.9,0.0001]
[1743678149871,184.45081946,115.92,115.9,0.0001]
[1743678150048,201.11661946,115.93,115.9,0.0001]
[1743678150241,48.75081946,115.92,115.9,0.0001]
[1743678150462,57.37811946,115.91,115.9,0.0001]
[1743678151261,26.0,115.88,115.84,0.03]
[1743678151448,48.75081946,115.85,115.84,0.03]
[1743678151843,26.0,115.83,115.82,0.03]
[1743678152060,74.75081946,115.83,115.82,0.03]
[1743678152257,74.89298103,115.83,115.82,0.03]
[1743678152565,83.38411946,115.83,115.82,0.03]
[1743678153245,193.08371946,115.84,115.82,0.03]
[1743678153563,150.5499,115.87,115.82,48.78081946]
[1743678153873,199.30071946,115.87,115.82,48.78081946]
[1743678154665,48.75081946,115.86,115.82,8.6637]
[1743678155170,199.30071946,115.87,115.82,57.41451946]
[1743678155661,190.67001946,115.87,115.83,48.75081946]
[1743678156147,190.67001946,115.87,115.82,57.41451946]
[1743678156842,63.60041946,115.87,115.82,57.41451946]
[1743678157074,14.8496,115.87,115.82,57.41451946]
[1743678157364,14.8496,115.87,115.83,48.75081946]
[1743678157365,6.2192,115.87,115.83,48.75081946]
[1743678157739,6.2192,115.87,115.82,18.963972]
[1743678157740,48.75081946,115.85,115.82,0.03]